bitfinex/quotes_SOLUSD_20250822
["timestamp","ask_amount","ask_price","bid_price","bid_amount"]
[1755850879003,10.850794,185.36,185.34,0.28432314]
[1755850879188,0.06,185.36,185.35,55.37559401]
[1755850882118,4.78819907,185.36,185.35,55.37559401]
[1755850882707,4.78819907,185.36,185.35,13.59559401]
[1755850882899,5.45819907,185.36,185.35,55.65991715]
[1755850883097,4.78819907,185.36,185.35,55.65991715]
[1755850884415,0.06,185.36,185.35,61.73511542]
[1755850884802,0.06,185.36,185.35,61.05511542]
[1755850885009,0.06,185.36,185.35,61.73511542]
[1755850885516,0.06,185.36,185.35,141.43511542]
[1755850885707,0.06,185.36,185.35,146.16331449]
[1755850887697,0.06,185.36,185.35,141.43511542]
[1755850888728,0.06,185.36,185.35,140.75511542]
[1755850890107,0.06,185.36,185.35,140.73511542]
[1755850890431,0.06,185.36,185.35,98.97511542]
[1755850890816,0.06,185.36,185.35,140.73511542]
[1755850891524,0.06,185.36,185.35,98.97511542]
[1755850891726,0.06,185.36,185.35,140.73511542]
[1755850893699,0.06,185.36,185.35,141.41511542]
[1755850893906,0.06,185.36,185.35,146.14331449]
[1755850894603,0.06,185.36,185.35,135.33991715]
[1755850895099,0.06,185.36,185.35,99.65511542]
[1755850895300,0.06,185.36,185.35,141.41511542]
[1755850895629,0.06,185.36,185.35,99.65511542]
[1755850895818,0.06,185.36,185.35,98.97511542]
[1755850896007,0.06,185.36,185.35,140.73511542]
[1755850896203,0.06,185.36,185.35,145.46331449]
[1755850896433,0.06,185.36,185.35,146.14331449]
[1755850897456,0.06,185.36,185.35,172.14331449]
[1755850897933,0.06,185.36,185.35,129.70331449]
[1755850898107,0.06,185.36,185.35,171.46331449]
[1755850898498,0.06,185.36,185.35,172.14331449]
[1755850899632,0.06,185.36,185.35,166.73511542]
[1755850899833,0.06,185.36,185.35,171.46331449]
[1755850900035,0.06,185.36,185.35,129.70331449]
[1755850900333,0.73,185.36,185.35,55.35559401]
[1755850900534,5.45819907,185.36,185.35,55.35559401]
[1755850900830,0.73,185.36,185.35,55.35559401]
[1755850901025,5.45819907,185.36,185.35,55.35559401]
[1755850901709,0.73,185.36,185.35,55.35559401]
[1755850901909,0.73,185.36,185.35,55.63991715]
[1755850902118,0.06,185.36,185.35,55.63991715]
[1755850902324,0.06,185.36,185.35,61.03511542]
[1755850903313,0.06,185.36,185.35,61.71511542]
[1755850903520,0.06,185.36,185.35,61.03511542]
[1755850906714,0.06,185.36,185.35,19.27511542]
[1755850907034,0.06,185.36,185.35,61.03511542]
[1755850907242,0.06,185.36,185.35,140.73511542]
[1755850914354,0.74,185.36,185.35,93.57991715]
[1755850914653,0.74,185.36,185.35,135.33991715]
[1755850915057,0.06,185.36,185.35,140.73511542]
[1755850919252,0.06,185.36,185.35,135.33991715]
[1755850919663,0.74,185.36,185.35,135.33991715]
[1755850920559,0.74,185.36,185.35,140.73511542]
[1755850920863,0.06,185.36,185.35,93.57991715]
[1755850921163,0.06,185.36,185.35,140.73511542]
[1755850923442,0.74,185.36,185.35,93.57991715]
[1755850923751,0.74,185.36,185.35,135.33991715]
[1755850924263,0.74,185.36,185.35,140.73511542]
[1755850924461,0.74,185.36,185.35,135.33991715]
[1755850924662,5.46819907,185.36,185.35,93.29559401]
[1755850924865,0.74,185.36,185.35,55.35559401]
[1755850925042,5.46819907,185.36,185.35,13.73775558]
[1755850925365,10.86310627,185.36,185.35,55.35559401]
[1755850925665,10.86310627,185.36,185.35,55.63991715]
[1755850925870,10.86310627,185.36,185.35,13.73775558]
[1755850926044,10.86310627,185.36,185.35,13.59559401]
[1755850926843,14.91100329,185.36,185.34,0.03]
[1755850927042,13.09920256,185.35,185.34,0.03]
[1755850927249,20.65802483,185.35,185.34,0.03]
[1755850927447,26.0,185.33,185.32,0.03]
[1755850927651,38.41920256,185.33,185.32,0.03]
[1755850928160,43.82568105,185.33,185.32,0.03]
[1755850928346,43.82568105,185.33,185.3,0.03]
[1755850928551,9.45639814,185.31,185.3,0.03]
[1755850928745,17.14568105,185.31,185.3,0.03]
[1755850928952,17.82568105,185.31,185.3,0.03]
[1755850929353,23.2220439,185.31,185.3,0.03]
[1755850929854,19.17561091,185.31,185.3,0.03]
[1755850930448,0.68,185.31,185.3,0.03]
[1755850930773,4.72819907,185.31,185.3,0.03]
[1755850931171,42.227181,185.35,185.3,0.03]
[1755850931372,4.72819907,185.34,185.32,0.28432314]
[1755850931671,5.40819907,185.34,185.33,0.14216157]
[1755850933670,5.40819907,185.34,185.32,0.28432314]
[1755850934795,4.72819907,185.33,185.32,0.28432314]
[1755850934972,5.40819907,185.34,185.32,0.28432314]
[1755850935885,4.72819907,185.35,185.32,13.87991715]
[1755850936067,0.06,185.36,185.32,19.31811622]
[1755850936377,4.78819907,185.36,185.32,104.41415418]
[1755850936792,0.06,185.36,185.32,103.70415418]
[1755850936962,0.06,185.36,185.34,13.87991715]
[1755850937150,0.06,185.36,185.34,55.63991715]
[1755850937351,5.41819907,185.35,185.34,13.87991715]
[1755850938182,4.72819907,185.35,185.34,13.87991715]
[1755850938478,4.78819907,185.36,185.34,13.87991715]
[1755850938772,0.06,185.36,185.34,13.87991715]
[1755850939174,0.06,185.36,185.35,56.31991715]
[1755850939382,0.06,185.36,185.35,61.04811622]
[1755850939675,0.06,185.36,185.35,66.44331449]
[1755850940063,0.06,185.36,185.35,61.71511542]
[1755850940263,0.06,185.36,185.35,66.44331449]
[1755850940764,0.06,185.36,185.35,60.36811622]
[1755850941162,0.06,185.36,185.35,61.03511542]
[1755850941350,0.06,185.36,185.35,66.44331449]
[1755850947889,0.06,185.36,185.35,61.71511542]
[1755850948069,0.06,185.36,185.35,66.44331449]
[1755850948580,0.06,185.36,185.35,146.14331449]
[1755850952086,0.75,185.36,185.35,93.57991715]
[1755850952289,0.06,185.36,185.35,140.73511542]
[1755850952601,0.06,185.36,185.35,145.46331449]
[1755850958309,0.06,185.36,185.35,140.73511542]
[1755850958493,0.06,185.36,185.35,145.46331449]
[1755850959896,0.75,185.36,185.35,98.97511542]
[1755850960095,0.06,185.36,185.35,140.71511542]
[1755850960610,0.06,185.36,185.35,145.44331449]
[1755850961415,0.75,185.36,185.35,140.71511542]
[1755850961705,0.75,185.36,185.35,135.31991715]
[1755850961896,0.75,185.36,185.35,140.71511542]
[1755850962303,0.06,185.36,185.35,140.71511542]
[1755850964514,0.06,185.36,185.35,145.44331449]
[1755850964891,0.06,185.36,185.35,146.12331449]
[1755850968909,0.06,185.36,185.35,141.39511542]
[1755850969112,0.06,185.36,185.35,146.12331449]
[1755850969503,0.06,185.36,185.35,66.42331449]
[1755850972397,0.06,185.36,185.35,65.74331449]
[1755850973710,0.75,185.36,185.35,65.74331449]
[1755850974114,0.75,185.36,185.35,60.87295385]
[1755850974419,0.75,185.36,185.35,61.01511542]
[1755850975011,0.75,185.36,185.35,65.74331449]
[1755850975319,0.06,185.36,185.35,65.74331449]
[1755850975811,0.06,185.36,185.35,61.01511542]
[1755850976137,0.06,185.36,185.35,65.74331449]
[1755850976350,0.75,185.36,185.35,65.74331449]
[1755850976515,0.75,185.36,185.35,55.61991715]
[1755850977906,0.75,185.36,185.35,61.01511542]
[1755850980308,0.06,185.36,185.35,65.74331449]
[1755850980731,0.06,185.36,185.35,66.40331449]
[1755850981112,0.06,185.36,185.35,65.74331449]
[1755850981530,0.06,185.36,185.35,66.40331449]
[1755850983842,0.06,185.36,185.35,65.74331449]
[1755850984552,0.06,185.36,185.35,67.90565249]
[1755850984758,0.06,185.36,185.35,65.74331449]
[1755850984935,0.06,185.36,185.35,93.90565249]
[1755850985953,0.06,185.36,185.35,91.74331449]
[1755850986345,0.75,185.36,185.35,91.74331449]
[1755850986930,0.06,185.36,185.35,91.74331449]
[1755850987753,0.75,185.36,185.35,91.74331449]
[1755850987935,0.75,185.36,185.35,87.01511542]
[1755850988132,0.75,185.36,185.35,81.61991715]
[1755850988859,0.75,185.36,185.35,55.61991715]
[1755850989045,0.75,185.36,185.35,13.59559401]
[1755850989354,5.47819907,185.36,185.35,55.33559401]
[1755850989558,5.47819907,185.36,185.35,55.61991715]
[1755850989756,5.47819907,185.36,185.35,55.33559401]
[1755850989937,5.47819907,185.36,185.35,13.87991715]
[1755850990132,10.87310627,185.36,185.35,13.87991715]
[1755850990359,10.87310627,185.36,185.35,13.59559401]
[1755850990658,5.47819907,185.36,185.35,13.59559401]
[1755850990836,0.75,185.36,185.35,13.59559401]
[1755850991154,5.47819907,185.36,185.35,13.73775558]
[1755850991949,5.47819907,185.36,185.35,13.87991715]
[1755850992737,10.87310627,185.36,185.35,13.59559401]
[1755850993649,16.35130527,185.36,185.35,13.59559401]
[1755850993843,16.35130527,185.36,185.32,0.17216157]
[1755850994146,4.72819907,185.33,185.32,0.17216157]
[1755850994350,4.72819907,185.33,185.32,0.31432314]
[1755850994549,10.81397956,185.33,185.32,0.31432314]
[1755850995349,3.64125026,185.35,185.32,0.31432314]
[1755850995664,5.41819907,185.34,185.32,0.31432314]
[1755850996639,0.69,185.34,185.32,0.31432314]
[1755850996838,4.72819907,185.35,185.32,0.31432314]
[1755850997068,5.38819907,185.35,185.32,0.31432314]
[1755850997268,5.38819907,185.35,185.34,0.28432314]
[1755850998757,4.72819907,185.35,185.34,0.28432314]
[1755850999062,5.38819907,185.35,185.34,0.28432314]
[1755850999268,0.66,185.35,185.34,0.28432314]
[1755850999470,5.38819907,185.35,185.34,0.28432314]
[1755851000567,5.38819907,185.35,185.33,55.31559401]
[1755851000774,10.78387411,185.34,185.32,41.77]
[1755851001072,4.72819907,185.34,185.33,0.14216157]
[1755851001449,5.38819907,185.34,185.33,0.28432314]
[1755851004656,0.66,185.34,185.33,0.28432314]
[1755851004857,4.72819907,185.34,185.33,13.87991715]
[1755851005473,0.06,185.35,185.33,13.87991715]
[1755851005676,0.06,185.35,185.34,55.61991715]
[1755851007278,0.06,185.35,185.34,61.01540652]
[1755851008053,0.06,185.35,185.34,55.61991715]
[1755851008866,0.06,185.35,185.34,61.01540652]
[1755851009268,0.06,185.35,185.34,61.71540652]
[1755851009777,0.06,185.35,185.34,66.44360559]
[1755851010458,0.06,185.35,185.34,68.60617659]
[1755851016182,0.06,185.35,185.34,94.60617659]
[1755851016685,0.06,185.35,185.34,15.75816501]
[1755851016872,5.44819907,185.35,185.34,55.31559401]
[1755851017264,5.44819907,185.35,185.34,55.59991715]
[1755851017889,0.06,185.35,185.34,13.59559401]
[1755851018182,0.06,185.35,185.34,55.59991715]
[1755851018386,0.72,185.35,185.34,55.59991715]
[1755851018573,0.72,185.35,185.34,55.45775558]
[1755851018766,0.72,185.35,185.34,55.59991715]
[1755851019568,5.44819907,185.35,185.34,55.59991715]
[1755851021382,5.44819907,185.35,185.34,13.59559401]
[1755851028768,5.44819907,185.35,185.32,0.03]
[1755851028974,4.72819907,185.33,185.32,0.03]
[1755851029589,5.39819907,185.33,185.32,0.03]
[1755851033093,10.79397956,185.33,185.32,0.03]
[1755851033479,14.43277198,185.33,185.32,0.03]
[1755851034090,31.39636285,185.31,185.3,0.03]
[1755851034304,44.49155341,185.31,185.3,0.03]
[1755851034500,45.16155341,185.31,185.3,0.03]
[1755851035977,45.15838341,185.31,185.3,0.03]
[1755851038300,41.52276099,185.31,185.3,0.03]
[1755851038897,43.68697099,185.31,185.3,0.03]
[1755851040190,43.68697099,185.31,185.28,0.03]
[1755851040191,85.40697099,185.31,185.28,0.03]
[1755851040377,4.72819907,185.29,185.28,0.03]
[1755851040778,5.39819907,185.29,185.28,0.03]
[1755851040999,7.56264207,185.29,185.28,0.03]
[1755851041201,2.834443,185.29,185.28,0.03]
[1755851041403,4.72819907,185.29,185.28,0.03]
[1755851041573,4.72819907,185.29,185.28,0.72]
[1755851042298,10.12514439,185.29,185.28,13.90991715]
[1755851042501,10.79514439,185.29,185.28,13.62559401]
[1755851042682,28.163975,185.32,185.29,13.59559401]
[1755851042896,2.163975,185.32,185.29,14.28559401]
[1755851043206,26.0,185.33,185.31,13.59559401]
[1755851043408,26.0,185.33,185.3,13.87991715]
[1755851043586,31.39579375,185.33,185.3,13.87991715]
[1755851043994,32.06579375,185.33,185.3,0.28432314]
[1755851044502,4.72819907,185.31,185.3,0.28432314]
[1755851045010,10.12456192,185.31,185.3,0.28432314]
[1755851045311,4.72819907,185.31,185.3,0.28432314]
[1755851045493,6.06599674,185.33,185.3,0.28432314]
[1755851045681,4.72819907,185.31,185.3,0.28432314]
[1755851046107,4.72819907,185.31,185.28,0.31432314]
[1755851046296,4.72819907,185.29,185.28,13.90991715]
[1755851048518,4.72819907,185.29,185.28,13.76775558]
[1755851048717,4.72819907,185.29,185.28,13.90991715]
[1755851051003,5.39819907,185.29,185.28,13.90991715]
[1755851051500,10.79514439,185.29,185.28,13.90991715]
[1755851052719,5.39819907,185.3,185.29,13.59559401]
[1755851052915,4.72819907,185.3,185.28,0.17216157]
[1755851053110,10.12489482,185.3,185.28,0.17216157]
[1755851053423,4.72819907,185.29,185.28,0.17216157]
[1755851053904,4.72819907,185.29,185.28,0.31432314]
[1755851056012,4.72819907,185.3,185.28,1.00432314]
[1755851056205,4.72819907,185.31,185.3,13.59559401]
[1755851056411,4.78819907,185.33,185.31,0.28432314]
[1755851056609,0.06,185.33,185.32,13.59559401]
[1755851057712,0.06,185.33,185.32,66.44418787]
[1755851058349,0.06,185.33,185.32,61.7159888]
[1755851059414,0.06,185.33,185.32,0.28432314]
[1755851059754,0.06,185.33,185.32,55.59991715]
[1755851060044,4.78819907,185.33,185.32,13.87991715]
[1755851060228,0.06,185.33,185.32,13.87991715]
[1755851060545,0.72,185.33,185.32,13.87991715]
[1755851060842,5.44819907,185.33,185.32,13.59559401]
[1755851061015,0.06,185.33,185.32,13.87991715]
[1755851063427,0.06,185.33,185.32,14.59991715]
[1755851063622,0.06,185.33,185.32,19.32811622]
[1755851064243,0.06,185.33,185.32,13.87991715]
[1755851066314,0.72,185.33,185.32,13.87991715]
[1755851067212,0.06,185.33,185.32,13.87991715]
[1755851068344,0.72,185.33,185.32,13.87991715]
[1755851069016,0.06,185.33,185.32,13.87991715]
[1755851069516,0.72,185.33,185.32,13.87991715]
[1755851069717,0.72,185.33,185.32,13.59559401]
[1755851069946,5.44819907,185.33,185.32,13.59559401]
[1755851070242,5.44819907,185.33,185.32,13.87991715]
[1755851070442,0.72,185.33,185.32,13.87991715]
[1755851071446,6.11578049,185.33,185.32,13.87991715]
[1755851075446,10.84397956,185.33,185.32,13.87991715]
[1755851075620,10.84397956,185.33,185.28,0.03]
[1755851075815,0.66,185.32,185.28,0.03]
[1755851076020,4.72819907,185.3,185.28,0.17216157]
[1755851076323,5.38819907,185.3,185.28,0.31432314]
[1755851076727,0.66,185.3,185.28,0.31432314]
[1755851077040,10.12464224,185.31,185.28,0.31432314]
[1755851077535,10.78464224,185.31,185.28,0.31432314]
[1755851078742,0.66,185.3,185.28,0.31432314]
[1755851079740,5.38819907,185.3,185.28,0.31432314]
[1755851080414,10.78514439,185.29,185.28,0.31432314]
[1755851082049,10.78514439,185.29,185.28,0.03]
[1755851082426,14.4215892,185.29,185.28,0.03]
[1755851083121,9.69339013,185.29,185.28,0.03]
[1755851083335,14.4215892,185.29,185.28,0.03]
[1755851086045,9.69339013,185.29,185.28,0.03]
[1755851086345,14.4215892,185.29,185.28,0.03]
[1755851087748,26.0,185.27,185.24,0.03]
[1755851088045,4.72819907,185.25,185.24,0.03]
[1755851088346,42.41,185.26,185.24,0.03]
[1755851088538,5.43819907,185.25,185.24,0.03]
[1755851088731,10.83630973,185.25,185.24,0.03]
[1755851089951,14.46895598,185.25,185.24,0.03]
[1755851091126,16.63398498,185.25,185.24,0.03]
[1755851091331,13.00133873,185.25,185.24,0.03]
[1755851091537,12.29133873,185.25,185.24,0.03]
[1755851092135,13.00133873,185.25,185.24,0.03]
[1755851096845,12.29133873,185.25,185.24,0.03]
[1755851097047,13.00133873,185.25,185.24,0.03]
[1755851100728,54.72133873,185.25,185.24,0.03]
[1755851103261,80.72133873,185.25,185.24,0.03]
[1755851104139,26.0,185.23,185.22,0.03]
[1755851104339,77.17639814,185.23,185.22,0.03]
[1755851104556,77.88639814,185.23,185.22,0.03]
[1755851104859,83.28509165,185.23,185.22,0.03]
[1755851105163,83.28509165,185.23,185.22,1e-08]
[1755851105540,86.90791166,185.23,185.22,1e-08]
[1755851105760,86.90791166,185.23,185.2,0.03]
[1755851105949,4.72819907,185.21,185.2,0.03]
[1755851106151,46.44819907,185.21,185.2,0.03]
[1755851106660,51.84747556,185.21,185.2,0.03]
[1755851107348,46.44819907,185.21,185.2,0.03]
[1755851107548,4.72819907,185.21,185.2,0.03]
[1755851108054,41.72,185.22,185.2,0.03]
[1755851108262,4.72819907,185.21,185.2,0.7]
[1755851108567,4.72819907,185.21,185.2,0.03]
[1755851109563,4.72819907,185.21,185.2,14.29559401]
[1755851110764,4.72819907,185.24,185.22,0.28432314]
[1755851110967,19.69305313,185.28,185.24,13.59559401]
[1755851111143,4.72819907,185.26,185.24,14.26559401]
[1755851111663,47.11745913,185.28,185.24,14.26559401]
[1755851111966,47.82745913,185.28,185.22,14.54991715]
[1755851112164,4.72819907,185.25,185.22,14.54991715]
[1755851112350,4.72819907,185.24,185.22,14.54991715]
[1755851112747,5.39781928,185.26,185.22,14.54991715]
[1755851112951,4.72819907,185.24,185.22,14.54991715]
[1755851113350,5.39781928,185.26,185.22,14.54991715]
[1755851113546,4.72819907,185.24,185.22,14.54991715]
[1755851114354,4.72819907,185.25,185.22,14.54991715]
[1755851115188,4.72819907,185.24,185.22,0.28432314]
[1755851115778,0.71,185.23,185.2,0.03]
[1755851116079,4.72819907,185.23,185.21,13.59559401]
[1755851117271,10.1269808,185.23,185.21,13.59559401]
[1755851117689,4.72819907,185.23,185.21,13.59559401]
[1755851117872,4.72819907,185.23,185.21,0.68]
[1755851118171,4.72819907,185.24,185.21,0.68]
[1755851119661,10.12664049,185.24,185.21,0.68]
[1755851120250,4.72819907,185.24,185.21,0.68]
[1755851120973,63.41381646,185.26,185.22,13.59559401]
[1755851121173,41.78,185.26,185.24,13.59559401]
[1755851121366,46.50819907,185.26,185.24,13.59559401]
[1755851121555,4.78819907,185.26,185.24,13.59559401]
[1755851122380,4.78819907,185.26,185.23,0.28432314]
[1755851123055,4.78819907,185.26,185.24,13.59559401]
[1755851123682,0.06,185.26,185.25,19.28811622]
[1755851125186,0.06,185.26,185.25,26.84996788]
[1755851126857,0.06,185.26,185.25,22.12176881]
[1755851127051,0.06,185.26,185.25,26.84996788]
[1755851127698,0.06,185.26,185.25,48.12176881]
[1755851127988,0.06,185.26,185.25,52.84996788]
[1755851128882,0.06,185.26,185.25,48.12176881]
[1755851129477,0.06,185.26,185.25,52.84996788]
[1755851129677,0.06,185.26,185.25,16.04365815]
[1755851129882,0.06,185.26,185.25,55.29559401]
[1755851130376,0.06,185.26,185.25,55.57991715]
[1755851130878,0.06,185.26,185.25,13.73775558]
[1755851131097,0.06,185.26,185.25,13.87991715]
[1755851131885,0.06,185.26,185.25,24.00622688]
[1755851132179,0.06,185.26,185.25,24.68622688]
[1755851133591,0.06,185.26,185.25,14.55991715]
[1755851133795,0.06,185.26,185.25,13.87991715]
[1755851134376,0.06,185.26,185.25,19.95802781]
[1755851134563,0.06,185.26,185.25,13.87991715]
[1755851134770,0.73,185.26,185.25,13.87991715]
[1755851134987,5.45819907,185.26,185.25,13.59559401]
[1755851136777,10.85601835,185.26,185.25,13.59559401]
[1755851137171,5.45819907,185.26,185.25,13.59559401]
[1755851139986,10.85601835,185.26,185.25,13.59559401]
[1755851140888,5.45819907,185.26,185.25,13.59559401]
[1755851141777,0.06,185.26,185.25,13.87991715]
[1755851141977,5.45819907,185.26,185.25,13.87991715]
[1755851143391,0.73,185.26,185.25,13.59559401]
[1755851143599,10.85601835,185.26,185.25,13.59559401]
[1755851144494,10.85601835,185.26,185.21,0.03]
[1755851144798,4.72819907,185.22,185.21,0.03]
[1755851145225,5.39819907,185.22,185.21,0.03]
[1755851145595,10.79718406,185.22,185.21,0.03]
[1755851147104,15.52538313,185.22,185.21,0.03]
[1755851147602,41.52538313,185.22,185.21,0.03]
[1755851147911,26.0,185.2,185.19,0.03]
[1755851148205,30.72819907,185.2,185.19,0.03]
[1755851148495,5.44819907,185.2,185.19,0.03]
[1755851149000,10.8477671,185.2,185.19,0.03]
[1755851150481,10.8477671,185.2,185.18,0.03]
[1755851150691,46.42819907,185.19,185.18,0.03]
[1755851150877,52.54805867,185.19,185.18,0.03]
[1755851152390,26.0,185.16,185.15,0.2]
[1755851152598,30.72819907,185.16,185.15,0.2]
[1755851152783,39.80743814,185.16,185.15,0.2]
[1755851152993,9.45639814,185.14,185.13,0.2]
[1755851153195,55.577193,185.14,185.13,0.2]
[1755851153399,59.9261423,185.14,185.13,0.2]
[1755851154312,65.32746022,185.14,185.13,0.2]
[1755851155293,61.69851092,185.14,185.13,0.2]
[1755851157390,22.16506492,185.14,185.13,0.2]
[1755851157590,63.88506492,185.14,185.13,0.2]
[1755851157996,22.16506492,185.14,185.13,0.2]
[1755851158201,63.88506492,185.14,185.13,0.2]
[1755851159598,54.42866678,185.14,185.13,0.2]
[1755851159803,63.88506492,185.14,185.13,0.2]
[1755851160305,2.166554,185.14,185.13,0.2]
[1755851160504,41.72,185.14,185.13,0.2]
[1755851160694,46.44819907,185.14,185.13,0.2]
[1755851161021,57.29771606,185.14,185.13,0.2]
[1755851162012,2.166202,185.15,185.13,0.2]
[1755851162212,4.72819907,185.14,185.13,0.2]
[1755851163911,10.12951699,185.14,185.13,0.2]
[1755851164406,10.84951699,185.14,185.13,0.2]
[1755851164613,10.12951699,185.14,185.13,0.2]
[1755851165013,4.72819907,185.14,185.13,0.2]
[1755851165727,46.44819907,185.14,185.13,0.2]
[1755851165912,51.84951699,185.14,185.13,0.2]
[1755851166096,52.56951699,185.14,185.13,0.2]
[1755851168323,47.12131792,185.14,185.13,0.2]
[1755851168530,51.84951699,185.14,185.13,0.2]
[1755851168737,52.56951699,185.14,185.13,0.2]
[1755851170627,57.29771606,185.14,185.13,0.2]
[1755851171004,70.92331006,185.14,185.13,0.2]
[1755851174445,26.0,185.12,185.11,0.2]
[1755851174619,72.44819907,185.12,185.11,0.2]
[1755851174939,78.57010053,185.12,185.11,0.2]
[1755851175248,4.72819907,185.1,185.09,0.03]
[1755851175439,46.44819907,185.1,185.09,0.03]
[1755851175615,47.16819907,185.1,185.09,0.03]
[1755851175811,60.79379307,185.1,185.09,0.03]
[1755851177124,66.19627821,185.1,185.09,0.03]
[1755851177634,65.47627821,185.1,185.09,0.03]
[1755851178151,60.74807914,185.1,185.09,0.03]
[1755851178314,65.47627821,185.1,185.09,0.03]
[1755851179824,66.19627821,185.1,185.09,0.03]
[1755851180340,65.47627821,185.1,185.09,0.03]
[1755851180935,60.74807914,185.1,185.09,0.03]
[1755851181142,65.47627821,185.1,185.09,0.03]
[1755851181936,19.02807914,185.1,185.09,0.03]
[1755851182114,65.49627821,185.1,185.09,0.03]
[1755851182314,66.21627821,185.1,185.09,0.03]
[1755851184138,65.49627821,185.1,185.09,0.03]
[1755851184936,23.75627821,185.1,185.09,0.03]
[1755851185127,65.49627821,185.1,185.09,0.03]
[1755851185919,66.21627821,185.1,185.09,0.03]
[1755851186945,24.47627821,185.1,185.09,0.03]
[1755851187142,66.21627821,185.1,185.09,0.03]
[1755851187347,65.49627821,185.1,185.09,0.03]
[1755851187521,66.21627821,185.1,185.09,0.03]
[1755851189642,24.47627821,185.1,185.09,0.03]
[1755851189834,66.21627821,185.1,185.09,0.03]
[1755851190529,24.47627821,185.1,185.09,0.03]
[1755851190730,66.21627821,185.1,185.09,0.03]
[1755851192752,65.49627821,185.1,185.09,0.03]
[1755851193453,69.85281021,185.1,185.09,0.03]
[1755851195428,65.12461114,185.1,185.09,0.03]
[1755851195628,69.13281021,185.1,185.09,0.03]
[1755851196028,69.85281021,185.1,185.09,0.03]
[1755851196251,73.17903308,185.1,185.09,0.03]
[1755851197463,73.90056314,185.1,185.09,0.03]
[1755851197936,73.90039129,185.1,185.09,0.03]
[1755851199548,32.16039129,185.1,185.09,0.03]
[1755851199859,73.90039129,185.1,185.09,0.03]
[1755851200555,73.89995798,185.1,185.09,0.03]
[1755851202266,26.0,185.08,185.07,0.03]
[1755851202467,80.15179282,185.08,185.07,0.03]
[1755851202678,80.15179282,185.08,185.05,0.03]
[1755851202679,4.72819907,185.06,185.05,0.03]
[1755851202959,26.0,185.03,185.0,0.71]
[1755851203162,4.72819907,185.01,185.0,14.30559401]
[1755851204339,5.40511323,185.01,185.0,13.59559401]
[1755851204533,10.1333123,185.01,184.98,0.71]
[1755851204762,4.72819907,184.99,184.95,13.59559401]
[1755851205064,4.72819907,184.97,184.96,0.14216157]
[1755851205438,4.72819907,184.98,184.96,0.14216157]
[1755851205966,4.72819907,184.99,184.98,13.87991715]
[1755851206164,4.72819907,184.99,184.98,0.28432314]
[1755851206346,4.72819907,184.99,184.96,13.37991715]
[1755851206860,4.72819907,185.01,184.97,0.71]
[1755851207247,4.72819907,185.0,184.97,0.71]
[1755851207968,4.72819907,184.99,184.97,6.11627256]
[1755851208142,67.74,185.03,184.97,5.40627256]
[1755851208143,4.72819907,185.0,184.97,5.40627256]
[1755851208462,4.72819907,185.0,184.98,14.54991715]
[1755851208654,4.72819907,185.0,184.99,0.67]
[1755851209470,3.63923981,185.02,185.0,13.59559401]
[1755851209770,4.72819907,185.05,185.03,0.28432314]
[1755851209976,4.72819907,185.04,185.02,13.59559401]
[1755851210275,4.72819907,185.03,185.01,13.59559401]
[1755851210474,4.72819907,185.02,185.01,0.95432314]
[1755851211154,4.72819907,185.02,184.98,0.67]
[1755851211351,4.72819907,185.01,185.0,0.28432314]
[1755851211550,4.72819907,185.01,185.0,0.95432314]
[1755851211972,4.72819907,185.01,185.0,14.54991715]
[1755851212551,4.72819907,185.02,185.0,14.54991715]
[1755851212859,0.06,185.04,185.0,14.54991715]
[1755851213056,4.72819907,185.03,185.02,13.59559401]
[1755851213254,4.72819907,185.03,185.02,14.26559401]
[1755851215552,10.13283752,185.03,185.0,0.95432314]
[1755851215766,4.72819907,185.02,185.0,0.95432314]
[1755851215963,4.72819907,185.02,185.01,13.59559401]
[1755851217360,10.13303578,185.02,184.99,0.28432314]
[1755851217696,4.72819907,185.01,184.99,0.95432314]